fUSD/lending_fUSD_20240129
["ID","MTS","AMOUNT","RATE_DAILY","PERIOD"]
[312978269,1706561453884,-500.0,0.00052602,31]
[312978270,1706561453894,-605.34,0.00052602,2]
[312978271,1706561453909,-1189.3,0.00052602,31]
[312978272,1706561453919,-1811.45,0.00052602,31]
[312978273,1706561453929,-1022.88,0.00052602,31]
[312978274,1706561453940,-500.0,0.00052602,31]
[312978275,1706561453950,-500.0,0.00052602,31]
[312978276,1706561453959,-500.0,0.00052602,31]
[312978277,1706561453969,-804.97,0.00052602,31]
[312978278,1706561453979,-629.27,0.00052602,31]
[312978279,1706561453989,-3273.33,0.00052602,31]
[312978280,1706561453999,-500.0,0.00052602,31]
[312978281,1706561454009,-500.0,0.00052602,31]
[312978282,1706561454019,-500.0,0.00052602,31]
[312978283,1706561454029,-1225.75,0.00052602,31]
[312978284,1706561454039,-500.0,0.00052602,31]
[312978285,1706561454048,-793.45,0.00052602,31]
[312978286,1706561454058,-500.0,0.00052602,31]
[312978287,1706561454072,-1464.2,0.00052602,31]
[312978288,1706561454081,-500.0,0.00052602,31]
[312978289,1706561454091,-500.0,0.00052602,31]
[312978290,1706561454100,-500.0,0.00052602,31]
[312978291,1706561454110,-500.0,0.00052602,31]
[312978292,1706561454120,-3764.69,0.00052602,5]
[312978293,1706561454130,-155.86070398,0.00052627,54]
[312978294,1706561454140,-169.03608847,0.00052654,60]
[312978295,1706561454152,-169.03608847,0.00052708,60]
[312978296,1706561454162,-153.29755698,0.00052708,60]
[312978297,1706561454172,-154.67281811,0.00052712,60]
[312978298,1706561454184,-157.47372315,0.00052752,60]
[312978299,1706561454194,-1855.63103534,0.00052776,14]
[312978300,1706561454203,-195.0,0.0005279,2]
[312978301,1706561454213,-151.013,0.00052798,59]
[312978302,1706561454223,-150.52477513,0.00052816,60]
[312978303,1706561454234,-157.47372315,0.00052816,60]
[312978304,1706561454244,-171.30628109,0.00052861,60]
[312978305,1706561454254,-150.0,0.00052875,12]
[312978306,1706561454265,-150.0,0.00052875,12]
[312978307,1706561454275,-230.64402486,0.00052876,31]
[312978308,1706561454284,-504.4,0.00052876,31]
[312978309,1706561454294,-518.52,0.00052876,31]
[312978310,1706561454304,-500.0,0.00052876,31]
[312978311,1706561454313,-500.0,0.00052876,31]
[312978312,1706561454323,-608.22888247,0.00052876,31]
[312978313,1706561454333,-500.0,0.00052876,31]
[312978314,1706561454342,-500.0,0.00052876,31]
[312978315,1706561454354,-500.0,0.00052876,31]
[312978316,1706561454363,-500.0,0.00052876,31]
[312978317,1706561454373,-500.0,0.00052876,31]
[312978318,1706561454382,-500.0,0.00052876,31]
[312978319,1706561454391,-500.0,0.00052876,31]
[312978320,1706561454403,-500.0,0.00052876,31]
[312978321,1706561454412,-1337.94,0.00052876,31]
[312978322,1706561454422,-500.0,0.00052876,31]
[312978323,1706561454431,-500.0,0.00052876,2]
[312978324,1706561454440,-848.08,0.00052876,7]
[312978325,1706561454450,-500.0,0.00052876,31]
[312978326,1706561454459,-1389.4,0.00052876,7]
[312978327,1706561454470,-500.0,0.00052876,31]
[312978328,1706561454481,-1135.76,0.00052876,31]
[312978329,1706561454491,-500.0,0.00052876,31]
[312978330,1706561454500,-500.0,0.00052876,7]
[312978331,1706561454509,-500.0,0.00052876,31]
[312978332,1706561454521,-500.0,0.00052876,31]
[312978333,1706561454531,-500.0,0.00052876,31]
[312978334,1706561454541,-500.0,0.00052876,31]
[312978335,1706561454550,-1571.78,0.00052876,2]
[312978336,1706561454561,-500.0,0.00052876,31]
[312978337,1706561454571,-500.0,0.00052876,31]
[312978338,1706561454580,-500.0,0.00052876,31]
[312978339,1706561454589,-500.0,0.00052876,31]
[312978340,1706561454598,-500.0,0.00052876,31]
[312978341,1706561454607,-538.77193112,0.00052876,31]
[312978342,1706561454617,-500.0,0.00052876,31]
[312978343,1706561454626,-736.08,0.00052876,31]
[312978344,1706561454635,-500.0,0.00052876,31]
[312978345,1706561454645,-500.0,0.00052876,31]
[312978346,1706561454656,-545.66,0.00052876,31]
[312978347,1706561454665,-500.0,0.00052876,31]
[312978348,1706561454674,-556.58,0.00052876,31]
[312978349,1706561454684,-1000.0,0.00052876,31]
[312978350,1706561454693,-500.0,0.00052876,31]
[312978351,1706561454703,-500.0,0.00052876,31]
[312978352,1706561454713,-500.0,0.00052876,31]
[312978353,1706561454723,-500.0,0.00052876,31]
[312978354,1706561454737,-500.0,0.00052876,31]
[312978355,1706561454754,-580.98,0.00052876,31]
[312978356,1706561454764,-500.0,0.00052876,31]
[312978357,1706561454774,-6101.25,0.00052876,31]
[312978358,1706561454784,-500.0,0.00052876,31]
[312978359,1706561454794,-500.0,0.00052876,31]
[312978360,1706561454804,-500.0,0.00052876,31]
[312978361,1706561454814,-500.0,0.00052876,31]
[312978362,1706561454824,-912.84,0.00052876,31]
[312978363,1706561454834,-1015.38,0.00052876,31]
[312978364,1706561454844,-559.21679213,0.00052876,31]
[312978365,1706561454854,-515.77997891,0.00052876,31]
[312978366,1706561454864,-500.0,0.00052876,2]
[312978367,1706561454874,-500.0,0.00052876,2]
[312978368,1706561454883,-1481.63,0.00052876,31]
[312978369,1706561454893,-635.59,0.00052876,31]
[312978370,1706561454906,-500.0,0.00052876,31]
[312978371,1706561454916,-546.29,0.00052876,31]
[312978372,1706561454927,-760.0,0.00052876,31]
[312978373,1706561454937,-500.0,0.00052876,7]
[312978374,1706561454947,-657.66,0.00052876,31]
[312978375,1706561454957,-523.24,0.00052876,31]
[312978376,1706561454968,-500.0,0.00052876,31]
[312978377,1706561454978,-283.50792275,0.00052876,31]
[312978378,1706561454989,-3364.15,0.00052876,31]
[312978379,1706561454999,-500.0,0.00052876,31]
[312978380,1706561455009,-1280.35,0.00052876,31]
[312978381,1706561455019,-797.69,0.00052876,31]
[312978382,1706561455030,-500.0,0.00052876,31]
[312978383,1706561455039,-500.0,0.00052876,31]
[312978384,1706561455049,-948.4,0.00052876,31]
[312978385,1706561455059,-749.54,0.00052876,31]
[312978386,1706561455069,-1581.43,0.00052876,31]
[312978387,1706561455078,-2715.29,0.00052876,31]
[312978388,1706561455088,-500.0,0.00052876,31]
[312978389,1706561455097,-1018.31,0.00052876,31]
[312978390,1706561455107,-1796.24,0.00052876,31]
[312978391,1706561455117,-500.0,0.00052876,31]
[312978392,1706561455127,-500.0,0.00052876,31]
[312978393,1706561455137,-543.32742827,0.00052876,31]
[312978394,1706561455147,-636.41,0.00052876,2]
[312978395,1706561455157,-670.5,0.00052876,31]
[312978396,1706561455166,-2496.34,0.00052876,31]
[312978397,1706561455176,-500.0,0.00052876,31]
[312978398,1706561455189,-925.06,0.00052876,31]
[312978399,1706561455198,-500.0,0.00052876,31]
[312978400,1706561455207,-3323.72,0.00052876,31]
[312978401,1706561455217,-500.0,0.00052876,31]
[312978402,1706561455227,-4642.25,0.00052876,31]
[312978403,1706561455236,-500.0,0.00052876,31]
[312978404,1706561455246,-821.87,0.00052876,31]
[312978405,1706561455255,-500.0,0.00052876,31]
[312978406,1706561455266,-910.37,0.00052876,31]
[312978407,1706561455277,-500.0,0.00052876,31]
[312978408,1706561455287,-500.0,0.00052876,31]
[312978409,1706561455297,-500.0,0.00052876,31]
[312978410,1706561455306,-1383.03,0.00052876,31]
[312978411,1706561455316,-1804.2,0.00052876,31]
[312978412,1706561455325,-1153.74,0.00052876,31]
[312978413,1706561455335,-500.0,0.00052876,31]
[312978414,1706561455344,-912.99,0.00052876,31]
[312978415,1706561455354,-6303.34,0.00052876,31]
[312978416,1706561455364,-1809.69,0.00052876,7]
[312978417,1706561455373,-500.0,0.00052876,31]
[312978418,1706561455383,-1137.49,0.00052876,31]
[312978419,1706561455392,-525.1,0.00052876,31]
[312978420,1706561455406,-500.0,0.00052876,31]
[312978421,1706561455415,-500.0,0.00052876,31]
[312978422,1706561455425,-897.67,0.00052876,31]
[312978423,1706561455435,-714.27,0.00052876,31]
[312978424,1706561455445,-1229.1,0.00052876,31]
[312978425,1706561455455,-2620.82,0.00052876,5]
[312978426,1706561455465,-500.0,0.00052876,31]
[312978427,1706561455475,-500.0,0.00052876,31]
[312978428,1706561455484,-1096.19,0.00052876,31]
[312978429,1706561455494,-1643.14,0.00052876,31]
[312978430,1706561455504,-500.0,0.00052876,31]
[312978431,1706561455513,-826.12,0.00052876,31]
[312978432,1706561455523,-500.0,0.00052876,31]
[312978433,1706561455532,-500.0,0.00052876,31]
[312978434,1706561455542,-968.31,0.00052876,31]
[312978435,1706561455551,-2224.65,0.00052876,31]
[312978436,1706561455561,-500.0,0.00052876,31]
[312978437,1706561455571,-1469.83,0.00052876,31]
[312978438,1706561455580,-500.0,0.00052876,31]
[312978439,1706561455590,-900.23,0.00052876,31]
[312978440,1706561455599,-1865.05,0.00052876,31]
[312978441,1706561455609,-4339.46,0.00052876,31]
[312978442,1706561455618,-517.92,0.00052876,31]
[312978443,1706561455628,-508.49,0.00052876,31]
[312978444,1706561455637,-3477.85,0.00052876,31]
[312978445,1706561455647,-500.0,0.00052876,31]
[312978446,1706561455657,-500.0,0.00052876,31]
[312978447,1706561455666,-500.0,0.00052876,31]
[312978448,1706561455676,-589.88,0.00052876,31]
[312978449,1706561455685,-500.0,0.00052876,31]
[312978450,1706561455695,-1173.01,0.00052876,31]
[312978451,1706561455704,-500.0,0.00052876,31]
[312978452,1706561455714,-850.07,0.00052876,31]
[312978453,1706561455724,-500.0,0.00052876,31]
[312978454,1706561455733,-4113.99,0.00052876,31]
[312978455,1706561455742,-790.48,0.00052876,31]
[312978456,1706561455752,-1441.85,0.00052876,31]
[312978457,1706561455762,-1205.31,0.00052876,31]
[312978458,1706561455771,-867.01,0.00052876,31]
[312978459,1706561455968,-926.85,0.00052876,31]
[312978460,1706561455977,-500.0,0.00052876,31]
[312978461,1706561455986,-573.37,0.00052876,31]
[312978462,1706561455996,-500.0,0.00052876,15]
[312978463,1706561456009,-500.0,0.00052876,31]
[312978464,1706561456019,-500.0,0.00052876,31]
[312978465,1706561456028,-828.34,0.00052876,31]
[312978466,1706561456038,-500.0,0.00052876,14]
[312978467,1706561456048,-500.0,0.00052876,31]
[312978468,1706561456057,-500.0,0.00052876,31]
[312978469,1706561456068,-628.77,0.00052876,2]
[312978470,1706561456077,-500.0,0.00052876,31]
[312978471,1706561456087,-500.0,0.00052876,31]
[312978472,1706561456096,-1106.95,0.00052876,31]
[312978473,1706561456106,-978.52,0.00052876,31]
[312978474,1706561456115,-500.0,0.00052876,31]
[312978475,1706561456125,-2042.22,0.00052876,31]
[312978476,1706561456134,-500.0,0.00052876,31]
[312978477,1706561456144,-500.0,0.00052876,31]
[312978478,1706561456154,-500.0,0.00052876,31]
[312978479,1706561456163,-818.23,0.00052876,31]
[312978480,1706561456173,-500.0,0.00052876,31]
[312978481,1706561456185,-500.0,0.00052876,31]
[312978482,1706561456194,-500.0,0.00052876,31]
[312978483,1706561456203,-1710.59,0.00052876,31]
[312978484,1706561456213,-1423.27,0.00052876,31]
[312978485,1706561456223,-682.21,0.00052876,31]
[312978486,1706561456234,-500.0,0.00052876,31]
[312978487,1706561456245,-500.0,0.00052876,31]
[312978488,1706561456255,-500.0,0.00052876,31]
[312978489,1706561456266,-500.0,0.00052876,31]
[312978490,1706561456277,-500.0,0.00052876,31]
[312978491,1706561456287,-808.28,0.00052876,31]
[312978492,1706561456297,-6188.49,0.00052876,31]
[312978493,1706561456307,-8000.67,0.00052876,31]
[312978494,1706561456317,-500.0,0.00052876,31]
[312978495,1706561456327,-500.0,0.00052876,31]
[312978496,1706561456337,-794.53,0.00052876,31]
[312978497,1706561456346,-3628.8,0.00052876,31]
[312978498,1706561456357,-500.0,0.00052876,31]
[312978499,1706561456366,-500.0,0.00052876,31]
[312978500,1706561456375,-1143.82,0.00052876,31]
[312978501,1706561456385,-500.0,0.00052876,31]
[312978502,1706561456395,-1366.43,0.00052876,31]
[312978503,1706561456407,-2100.64,0.00052876,31]
[312978504,1706561456416,-500.0,0.00052876,31]
[312978505,1706561456425,-8061.28,0.00052876,31]
[312978506,1706561456435,-500.0,0.00052876,31]
[312978507,1706561456444,-684.15,0.00052876,31]
[312978508,1706561456453,-500.0,0.00052876,31]
[312978509,1706561456463,-500.0,0.00052876,31]
[312978510,1706561456472,-508.43,0.00052876,31]
[312978511,1706561456482,-500.0,0.00052876,31]
[312978512,1706561456491,-601.77,0.00052876,31]
[312978513,1706561456501,-1282.3,0.00052876,31]
[312978514,1706561456510,-1157.8,0.00052876,31]
[312978515,1706561456520,-901.62,0.00052876,31]
[312978516,1706561456529,-500.0,0.00052876,31]
[312978517,1706561456539,-807.23,0.00052876,31]
[312978518,1706561456548,-605.34,0.00052876,2]
[312978519,1706561456557,-1189.3,0.00052876,31]
[312978520,1706561456566,-1811.45,0.00052876,31]
[312978521,1706561456576,-1022.88,0.00052876,31]
[312978522,1706561456586,-500.0,0.00052876,31]
[312978523,1706561456596,-500.0,0.00052876,31]
[312978524,1706561456606,-500.0,0.00052876,31]
[312978525,1706561456617,-804.97,0.00052876,31]
[312978526,1706561456627,-629.27,0.00052876,31]
[312978527,1706561456637,-3273.33,0.00052876,31]
[312978528,1706561456647,-500.0,0.00052876,31]
[312978529,1706561456657,-500.0,0.00052876,31]
[312978530,1706561456666,-500.0,0.00052876,31]
[312978531,1706561456679,-1225.75,0.00052876,31]
[312978532,1706561456689,-500.0,0.00052876,31]
[312978533,1706561456699,-793.45,0.00052876,31]
[312978534,1706561456708,-500.0,0.00052876,31]
[312978535,1706561456717,-1464.2,0.00052876,31]
[312978536,1706561456728,-500.0,0.00052876,31]
[312978537,1706561456738,-500.0,0.00052876,31]
[312978538,1706561456747,-500.0,0.00052876,31]
[312978539,1706561456756,-500.0,0.00052876,31]
[312978540,1706561456766,-3764.69,0.00052876,5]
[312978541,1706561456776,-458.74113,0.0005289,5]
[312978542,1706561456786,-153.29755698,0.00052925,60]
[312978543,1706561456797,-150.52477513,0.00052929,60]
[312978544,1706561456809,-153.29755698,0.00052934,60]
[312978545,1706561456818,-161.23409422,0.00052938,60]
[312978546,1706561456828,-2338.0,0.00052981,30]
[312978547,1706561456838,-533.0,0.00052981,30]
[312978548,1706561456848,-150.0,0.00052992,2]
[312978549,1706561456857,-50000.0,0.00053,43]
[312978550,1706561456867,-1811.18,0.00053,5]
[312978551,1706561456878,-600.0,0.00053,30]
[312978552,1706561456887,-949.0,0.00053,60]
[312978553,1706561456897,-13954.0,0.00053,60]
[312978554,1706561456908,-2778.0,0.00053,60]
[312978555,1706561456918,-540.0,0.00053,60]
[312978556,1706561456929,-2510.0,0.00053,60]
[312978557,1706561456938,-150.68,0.00053,120]
[312978558,1706561456947,-150.68,0.00053,120]
[312978559,1706561456956,-150.68,0.00053,120]
[312978560,1706561456966,-150.68,0.00053,120]
[312978561,1706561456975,-150.68,0.00053,120]
[312978562,1706561456985,-150.68,0.00053,120]
[312978563,1706561456996,-150.68,0.00053,120]
[312978564,1706561457007,-150.68,0.00053,120]
[312978565,1706561457018,-150.68,0.00053,120]
[312978566,1706561457028,-150.68,0.00053,120]
[312978567,1706561457038,-150.68,0.00053,120]
[312978568,1706561457048,-150.68,0.00053,120]
[312978569,1706561457057,-150.68,0.00053,120]
[312978570,1706561457067,-150.68,0.00053,120]
[312978571,1706561457076,-150.68,0.00053,120]
[312978572,1706561457086,-150.68,0.00053,120]
[312978573,1706561457095,-150.68,0.00053,120]
[312978574,1706561457104,-150.68,0.00053,120]
[312978575,1706561457114,-150.68,0.00053,120]
[312978576,1706561457123,-150.68,0.00053,120]
[312978577,1706561457133,-150.68,0.00053,120]
[312978578,1706561457142,-150.68,0.00053,120]
[312978579,1706561457154,-150.68,0.00053,120]
[312978580,1706561457164,-150.68,0.00053,120]
[312978581,1706561457174,-150.68,0.00053,120]
[312978582,1706561457184,-150.68,0.00053,120]
[312978583,1706561457195,-150.68,0.00053,120]
[312978584,1706561457205,-150.68,0.00053,120]
[312978585,1706561457214,-150.68,0.00053,120]
[312978586,1706561457224,-150.68,0.00053,120]
[312978587,1706561457235,-150.68,0.00053,120]
[312978588,1706561457246,-150.68,0.00053,120]
[312978589,1706561457256,-150.68,0.00053,120]
[312978590,1706561457267,-150.68,0.00053,120]
[312978591,1706561457277,-150.68,0.00053,120]
[312978592,1706561457286,-150.68,0.00053,120]
[312978593,1706561457296,-150.68,0.00053,120]
[312978594,1706561457306,-150.68,0.00053,120]
[312978595,1706561457316,-150.68,0.00053,120]
[312978596,1706561457326,-600.0,0.00053,54]
[312978597,1706561457336,-150.68,0.00053,120]
[312978598,1706561457346,-150.68,0.00053,120]
[312978599,1706561457356,-150.68,0.00053,120]
[312978600,1706561457365,-150.68,0.00053,120]
[312978601,1706561457376,-150.68,0.00053,120]
[312978602,1706561457386,-150.68,0.00053,120]
[312978603,1706561457396,-150.68,0.00053,120]
[312978604,1706561457407,-150.68,0.00053,120]
[312978605,1706561457417,-150.68,0.00053,120]
[312978606,1706561457426,-150.68,0.00053,120]
[312978607,1706561457436,-150.68,0.00053,120]
[312978608,1706561457445,-150.68,0.00053,120]
[312978609,1706561457454,-150.68,0.00053,120]
[312978610,1706561457463,-150.68,0.00053,120]
[312978611,1706561457473,-150.68,0.00053,120]
[312978612,1706561457482,-150.68,0.00053,120]
[312978613,1706561457491,-150.68,0.00053,120]
[312978614,1706561457501,-150.68,0.00053,120]
[312978615,1706561457510,-150.68,0.00053,120]
[312978616,1706561457519,-150.68,0.00053,120]
[312978617,1706561457528,-150.68,0.00053,120]
[312978618,1706561457537,-150.68,0.00053,120]
[312978619,1706561457547,-150.68,0.00053,120]
[312978620,1706561457556,-150.68,0.00053,120]
[312978621,1706561457565,-150.68,0.00053,120]
[312978622,1706561457574,-150.68,0.00053,120]
[312978623,1706561457583,-150.68,0.00053,120]
[312978624,1706561457593,-150.68,0.00053,120]
[312978625,1706561457601,-150.68,0.00053,120]
[312978626,1706561457610,-150.68,0.00053,120]
[312978627,1706561457619,-150.68,0.00053,120]
[312978628,1706561457628,-150.68,0.00053,120]
[312978629,1706561457637,-150.68,0.00053,120]
[312978630,1706561457647,-150.68,0.00053,120]
[312978631,1706561457658,-150.68,0.00053,120]
[312978632,1706561457667,-150.68,0.00053,120]
[312978633,1706561457677,-150.68,0.00053,120]
[312978634,1706561457686,-150.68,0.00053,120]
[312978635,1706561457695,-150.68,0.00053,120]
[312978636,1706561457704,-150.68,0.00053,120]
[312978637,1706561457714,-150.68,0.00053,120]
[312978638,1706561457723,-150.68,0.00053,120]
[312978639,1706561457733,-150.68,0.00053,120]
[312978640,1706561457742,-150.68,0.00053,120]
[312978641,1706561457751,-150.52477513,0.00053036,60]
[312978642,1706561457760,-1208.0,0.0005307,30]
[312978643,1706561457770,-159.77,0.00053072,2]
[312978644,1706561457779,-154.67281811,0.0005308,60]
[312978645,1706561457788,-157.47372315,0.00053082,60]
[312978646,1706561457797,-153.29755698,0.0005309,60]
[312978647,1706561457807,-195.0,0.0005309,2]
[312978648,1706561457816,-153.29755698,0.00053122,60]
[312978649,1706561457825,-153.29755698,0.00053133,60]
[312978650,1706561457834,-154.67281811,0.00053148,60]
[312978651,1706561457843,-504.4,0.0005315,31]
[312978652,1706561457853,-518.52,0.0005315,31]
[312978653,1706561457862,-500.0,0.0005315,31]
[312978654,1706561457871,-500.0,0.0005315,31]
[312978655,1706561457881,-500.0,0.0005315,31]
[312978656,1706561457890,-500.0,0.0005315,31]
[312978657,1706561457900,-252.24197796,0.0005315,31]
[312978658,1706561457910,-500.0,0.0005315,31]
[312978659,1706561457920,-461.96323227,0.0005315,31]
[312978660,1706561457930,-284.84,0.0005315,31]
[312978661,1706561457940,-500.0,0.0005315,31]
[312978662,1706561457949,-500.0,0.0005315,31]
[312978663,1706561457958,-1337.94,0.0005315,31]
[312978664,1706561457967,-500.0,0.0005315,31]
[312978665,1706561457977,-500.0,0.0005315,2]
[312978666,1706561457986,-848.08,0.0005315,7]
[312978667,1706561457995,-500.0,0.0005315,31]
[312978668,1706561458004,-1389.4,0.0005315,7]
[312978669,1706561458013,-500.0,0.0005315,31]
[312978670,1706561458022,-1135.76,0.0005315,31]
[312978671,1706561458034,-500.0,0.0005315,31]
[312978672,1706561458044,-500.0,0.0005315,7]
[312978673,1706561458054,-500.0,0.0005315,31]
[312978674,1706561458063,-500.0,0.0005315,31]
[312978675,1706561458073,-500.0,0.0005315,31]
[312978676,1706561458083,-500.0,0.0005315,31]
[312978677,1706561458093,-1571.78,0.0005315,2]
[312978678,1706561458102,-500.0,0.0005315,31]
[312978679,1706561458113,-500.0,0.0005315,31]
[312978680,1706561458124,-500.0,0.0005315,31]
[312978681,1706561458134,-415.30696607,0.0005315,31]
[312978682,1706561458145,-556.26426592,0.0005315,31]
[312978683,1706561458156,-500.0,0.0005315,31]
[312978684,1706561458166,-736.08,0.0005315,31]
[312978685,1706561458178,-500.0,0.0005315,31]
[312978686,1706561458192,-500.0,0.0005315,31]
[312978687,1706561458202,-545.66,0.0005315,31]
[312978688,1706561458212,-500.0,0.0005315,31]
[312978689,1706561458223,-556.58,0.0005315,31]
[312978690,1706561458233,-1000.0,0.0005315,31]
[312978691,1706561458245,-500.0,0.0005315,31]
[312978692,1706561458254,-500.0,0.0005315,31]
[312978693,1706561458265,-500.0,0.0005315,31]
[312978694,1706561458274,-507.44421499,0.0005315,31]
[312978695,1706561458284,-500.0,0.0005315,31]
[312978696,1706561458293,-580.98,0.0005315,31]
[312978697,1706561458302,-500.0,0.0005315,31]
[312978698,1706561458312,-6101.25,0.0005315,31]
[312978699,1706561458363,-500.0,0.0005315,31]
[312978700,1706561458373,-500.0,0.0005315,31]
[312978701,1706561458382,-500.0,0.0005315,31]
[312978702,1706561458391,-500.0,0.0005315,31]
[312978703,1706561458401,-912.84,0.0005315,31]
[312978704,1706561458414,-1015.38,0.0005315,31]
[312978705,1706561458423,-500.0,0.0005315,2]
[312978706,1706561458432,-500.0,0.0005315,2]
[312978707,1706561458441,-1481.63,0.0005315,31]
[312978708,1706561458450,-635.59,0.0005315,31]
[312978709,1706561458459,-500.0,0.0005315,31]
[312978710,1706561458468,-546.29,0.0005315,31]
[312978711,1706561458478,-760.0,0.0005315,31]
[312978712,1706561458487,-500.0,0.0005315,7]
[312978713,1706561458496,-657.66,0.0005315,31]
[312978714,1706561458508,-523.24,0.0005315,31]
[312978715,1706561458517,-500.0,0.0005315,31]
[312978716,1706561458530,-3364.15,0.0005315,31]
[312978717,1706561458540,-500.0,0.0005315,31]
[312978718,1706561458550,-1280.35,0.0005315,31]
[312978719,1706561458559,-797.69,0.0005315,31]
[312978720,1706561458568,-500.0,0.0005315,31]
[312978721,1706561458578,-500.0,0.0005315,31]
[312978722,1706561458590,-948.4,0.0005315,31]
[312978723,1706561458599,-749.54,0.0005315,31]
[312978724,1706561458607,-1581.43,0.0005315,31]
[312978725,1706561458615,-2715.29,0.0005315,31]
[312978726,1706561458624,-500.0,0.0005315,31]
[312978727,1706561458633,-1018.31,0.0005315,31]
[312978728,1706561458642,-1796.24,0.0005315,31]
[312978729,1706561458651,-500.0,0.0005315,31]
[312978730,1706561458661,-500.0,0.0005315,31]
[312978731,1706561458671,-636.41,0.0005315,2]
[312978732,1706561458681,-670.5,0.0005315,31]
[312978733,1706561458690,-2496.34,0.0005315,31]
[312978734,1706561458699,-500.0,0.0005315,31]
[312978735,1706561458710,-925.06,0.0005315,31]
[312978736,1706561458719,-500.0,0.0005315,31]
[312978737,1706561458728,-3323.72,0.0005315,31]
[312978738,1706561458737,-500.0,0.0005315,31]
[312978739,1706561458746,-4642.25,0.0005315,31]
[312978740,1706561458756,-500.0,0.0005315,31]
[312978741,1706561458765,-821.87,0.0005315,31]
[312978742,1706561458775,-500.0,0.0005315,31]
[312978743,1706561458784,-910.37,0.0005315,31]
[312978744,1706561458794,-500.0,0.0005315,31]
[312978745,1706561458803,-500.0,0.0005315,31]
[312978746,1706561458812,-500.0,0.0005315,31]
[312978747,1706561458821,-1383.03,0.0005315,31]
[312978748,1706561458830,-1804.2,0.0005315,31]
[312978749,1706561458839,-1153.74,0.0005315,31]
[312978750,1706561458848,-500.0,0.0005315,31]
[312978751,1706561458857,-912.99,0.0005315,31]
[312978752,1706561458867,-6303.34,0.0005315,31]
[312978753,1706561458876,-1809.69,0.0005315,7]
[312978754,1706561458885,-500.0,0.0005315,31]
[312978755,1706561458894,-1137.49,0.0005315,31]
[312978756,1706561458905,-525.1,0.0005315,31]
[312978757,1706561458914,-500.0,0.0005315,31]
[312978758,1706561458923,-500.0,0.0005315,31]
[312978759,1706561458932,-897.67,0.0005315,31]
[312978760,1706561458941,-714.27,0.0005315,31]
[312978761,1706561458950,-1229.1,0.0005315,31]
[312978762,1706561458959,-2620.82,0.0005315,5]
[312978763,1706561458968,-500.0,0.0005315,31]
[312978764,1706561458977,-500.0,0.0005315,31]
[312978765,1706561458987,-1096.19,0.0005315,31]
[312978766,1706561458995,-1643.14,0.0005315,31]
[312978767,1706561459005,-500.0,0.0005315,31]
[312978768,1706561459014,-826.12,0.0005315,31]